bitfinex/quotes_ETHUSD_20240530
["timestamp","ask_amount","ask_price","bid_price","bid_amount"]
[1717102078768,5.2034132,3744.3,3742.5,3.47613922]
[1717102078972,5.2034132,3744.3,3743.2,2.67149]
[1717102080144,2.67091,3744.1,3743.2,2.67149]
[1717102080353,2.67101,3743.9,3742.8,2.67175]
[1717102080740,3.0,3743.8,3742.8,2.67175]
[1717102081365,0.55326932,3744.1,3743.1,2.67154]
[1717102083390,3.0,3744.2,3743.4,2.67133]
[1717102083549,0.1620932,3744.3,3743.4,2.67133]
[1717102086798,0.1620932,3744.3,3743.7,2.67108]
[1717102091781,2.5941932,3744.3,3743.3,9.34404625]
[1717102092026,0.52648032,3744.2,3743.3,9.34404625]
[1717102092310,3.52648032,3744.2,3743.3,9.34404625]
[1717102094001,0.52648032,3744.2,3743.3,9.34404625]
[1717102094398,0.1620932,3744.3,3743.6,2.67118]
[1717102098603,2.6708,3744.2,3743.3,6.67265625]
[1717102098807,2.671,3744.0,3743.3,6.67265625]
[1717102099003,2.67119,3743.7,3743.3,6.67265625]
[1717102099202,0.1620932,3744.3,3742.8,2.67173]
[1717102099203,2.67132,3743.5,3742.8,6.67265625]
[1717102100273,0.24552932,3744.0,3742.8,6.67265625]
[1717102100274,2.67103,3743.9,3742.8,6.67265625]
[1717102100525,2.67103,3743.9,3742.9,2.67169]
[1717102100820,2.67117,3743.7,3742.9,2.67169]
[1717102100972,3.0,3743.6,3742.9,2.67169]
[1717102101621,0.17329691,3743.9,3743.2,2.67147]
[1717102101820,0.17329691,3743.9,3743.3,0.05342201]
[1717102103293,0.17329691,3743.9,3743.2,2.67147]
[1717102103492,0.78226553,3743.9,3743.2,2.67147]
[1717102106318,3.45328553,3743.9,3743.2,2.67147]
[1717102110581,0.78226553,3743.9,3743.2,2.67147]
[1717102110830,0.78226553,3743.9,3743.2,4.94777]
[1717102111685,0.17329691,3743.9,3743.4,2.6713]
[1717102112079,0.17329691,3743.9,3743.2,2.2763]
[1717102112421,0.17329691,3743.9,3743.6,2.67116]
[1717102118490,2.4777,3744.7,3743.6,2.67116]
[1717102118690,0.57750768,3744.6,3743.6,2.67116]
[1717102118926,2.67078,3744.3,3743.6,2.67116]
[1717102119085,2.84501474,3744.3,3743.6,2.67116]
[1717102119722,0.17423474,3744.3,3743.6,2.67116]
[1717102120127,0.17423474,3744.3,3743.9,2.671]
[1717102120452,0.17423474,3744.3,3744.0,0.2671]
[1717102120608,0.17423474,3744.3,3743.9,4.9269]
[1717102124643,0.17423474,3744.3,3743.9,2.671]
[1717102129205,2.58993474,3744.3,3743.9,2.671]
[1717102131105,0.17423474,3744.3,3743.9,2.671]
[1717102135220,2.4102,3744.2,3743.6,2.67121]
[1717102135429,0.25844347,3744.1,3743.4,6.67265625]
[1717102137020,2.92937347,3744.1,3743.4,6.67265625]
[1717102137257,5.92937347,3744.1,3743.4,6.67265625]
[1717102138059,2.3904,3743.7,3743.0,6.67265625]
[1717102139887,2.67125,3743.6,3743.0,6.67265625]
[1717102142782,2.67125,3743.6,3742.9,2.67166]
[1717102143489,2.3904,3743.7,3742.9,2.67166]
[1717102145695,2.3904,3744.0,3743.2,2.67147]
[1717102145862,2.3904,3744.0,3743.3,0.495287]
[1717102146053,2.3904,3744.0,3743.2,2.67147]
[1717102147393,3.0,3744.2,3743.2,2.67147]
[1717102148581,2.84501474,3744.3,3743.2,2.67147]
[1717102150414,0.17423474,3744.3,3743.3,1.32213922]
[1717102150631,0.17423474,3744.3,3743.8,2.67106]
[1717102154110,0.17423474,3744.3,3744.1,2.67085]
[1717102155521,0.17423474,3744.3,3744.2,0.05341066]
[1717102156672,2.4732,3745.9,3744.2,3.65384988]
[1717102156878,2.4732,3745.9,3744.6,2.154]
[1717102157073,2.987478,3745.9,3744.7,0.2154]
[1717102158023,2.987478,3745.9,3745.1,2.67008]
[1717102160211,2.4732,3745.9,3745.1,2.67008]
[1717102162316,2.4732,3745.9,3745.4,2.66992]
[1717102162531,2.66928,3746.4,3745.4,2.66992]
[1717102162532,2.4765,3746.3,3745.4,2.66992]
[1717102171364,2.261,3746.7,3745.6,2.66973]
[1717102171724,2.261,3746.7,3745.8,2.66964]
[1717102171725,2.66909,3746.6,3745.8,2.66964]
[1717102171925,2.66909,3746.6,3745.9,0.508184]
[1717102173458,2.66909,3746.6,3745.8,2.66964]
[1717102176929,2.83072342,3746.9,3746.1,2.66943]
[1717102183069,2.83072342,3746.9,3745.8,9.34230625]
[1717102183389,2.66917,3746.5,3745.8,9.34230625]
[1717102186583,2.66917,3746.5,3745.8,2.66965]
[1717102186779,2.66894,3746.8,3746.1,2.4805]
[1717102187385,2.66894,3746.8,3746.1,2.5805]
[1717102190340,2.66894,3746.8,3746.2,2.66936]
[1717102197114,2.66894,3746.8,3746.1,3.4745]
[1717102197584,2.66894,3746.8,3746.1,4.78287013]
[1717102198073,2.66894,3746.8,3746.3,0.894]
[1717102200685,2.66894,3746.8,3746.1,4.78287013]
[1717102202467,2.66894,3746.8,3746.1,2.5805]
[1717102202713,2.66894,3746.8,3746.1,0.1]
[1717102202915,0.57702666,3746.7,3746.1,0.1]
[1717102203072,2.66894,3746.8,3746.1,0.1]
[1717102204795,0.57701248,3746.7,3746.1,0.1]
[1717102206833,0.57701168,3746.7,3746.1,0.1]
[1717102207185,2.6691,3746.6,3746.1,0.1]
[1717102207391,2.66929,3746.4,3746.1,0.1]
[1717102207587,0.43018051,3746.7,3746.1,0.1]
[1717102207588,2.66937,3746.2,3746.1,0.1]
[1717102208042,6.24646248,3746.2,3746.1,0.1]
[1717102208354,7.20883873,3746.2,3746.1,0.1]
[1717102212351,8.53097795,3746.2,3746.1,0.1]
[1717102213124,10.86207795,3746.2,3746.1,0.1]
[1717102213629,14.46237891,3746.2,3746.1,0.1]
[1717102213933,2.67008,3745.2,3745.1,6.67265625]
[1717102214117,6.2834,3745.2,3744.4,2.2828]
[1717102214320,3.0,3745.1,3744.1,12.72298625]
[1717102214636,0.894,3744.3,3744.1,6.67265625]
[1717102214815,0.894,3744.3,3743.7,5.15662]
[1717102215152,0.894,3744.3,3743.5,6.67265625]
[1717102215153,0.894,3743.9,3743.5,6.67265625]
[1717102216256,2.67097,3744.0,3743.5,6.67265625]
[1717102216257,0.894,3743.7,3743.5,6.67265625]
[1717102216806,2.67122,3743.6,3742.9,2.4387]
[1717102217045,2.67149,3743.3,3742.3,2.4327]
[1717102217279,0.894,3743.1,3742.3,2.4327]
[1717102217408,0.894,3742.9,3742.3,2.4327]
[1717102217764,0.894,3742.9,3742.3,2.943198]
[1717102218110,0.894,3743.1,3742.3,2.943198]
[1717102218377,2.67149,3743.3,3742.3,2.943198]
[1717102218552,2.67149,3743.3,3742.3,2.4327]
[1717102218861,2.67174,3742.9,3741.8,2.2895]
[1717102220134,2.672,3742.6,3741.8,2.2895]
[1717102220942,2.67163,3743.1,3741.9,1.32213922]
[1717102221271,5.67128,3743.6,3742.1,2.67227]
[1717102221425,5.67128,3743.6,3742.5,2.4331]
[1717102222162,5.67128,3743.6,3742.4,2.67205]
[1717102223637,2.67143,3743.3,3742.4,2.67205]
[1717102225698,2.67143,3743.3,3742.1,6.67265625]
[1717102225999,3.482243,3743.2,3742.1,6.67265625]
[1717102226803,2.67162,3743.1,3742.1,6.67265625]
[1717102231651,2.67162,3743.1,3742.2,5.08858]
[1717102232190,3.0,3743.7,3742.5,2.67195]
[1717102232389,4.4028,3744.0,3742.7,2.67186]
[1717102232390,5.67104,3743.9,3742.7,2.67186]
[1717102232584,0.05163783,3743.6,3742.7,2.67186]
[1717102232797,0.38093096,3744.6,3742.7,2.67186]
[1717102232798,0.05173497,3743.8,3743.0,5.08799]
[1717102233004,0.05077763,3743.5,3743.2,2.67149]
[1717102233207,5.10787935,3744.3,3743.3,0.51413148]
[1717102233422,2.85607935,3744.3,3743.2,2.67149]
[1717102233596,0.0513142,3744.2,3743.2,2.67149]
[1717102234519,3.0513142,3744.2,3743.2,2.67149]
[1717102235417,3.0513142,3744.2,3743.1,6.67265625]
[1717102235418,2.6709,3744.1,3743.1,6.67265625]
[1717102235834,0.05131002,3744.0,3743.1,6.67265625]
[1717102236751,2.67101,3743.9,3743.1,6.67265625]
[1717102237230,0.0512129,3743.8,3743.1,6.67265625]
[1717102242219,0.0512129,3743.8,3743.0,2.4164]
[1717102243146,2.67116,3743.7,3742.8,2.67175]
[1717102243357,2.67138,3743.4,3742.7,18.88265625]
[1717102243536,2.67138,3743.4,3742.5,2.2523]
[1717102244408,2.67153,3743.2,3742.4,2.67203]
[1717102244945,0.05058711,3743.1,3742.4,2.67203]
[1717102247581,0.05058711,3743.1,3742.4,3.83280863]
[1717102247938,3.0,3743.5,3742.4,3.83280863]
[1717102248140,0.05083117,3743.0,3742.4,3.83280863]
[1717102248450,0.05078259,3742.9,3742.3,6.67265625]
[1717102248666,2.6716,3743.1,3742.3,6.67265625]
[1717102248865,2.67182,3742.8,3742.3,6.67265625]
[1717102249055,2.40418541,3742.7,3742.3,6.67265625]
[1717102253105,2.67195,3742.6,3742.3,6.67265625]
[1717102253311,2.67237,3742.0,3741.7,6.67265625]
[1717102253467,2.67237,3742.0,3741.2,2.67289]
[1717102253670,0.05072499,3741.9,3741.2,2.67289]
[1717102254425,0.05072499,3741.9,3741.5,2.67271]
[1717102254630,0.05072499,3741.9,3741.7,2.67258]
[1717102254795,3.0,3742.7,3741.7,2.67258]
[1717102255221,0.04784646,3742.6,3741.7,2.67258]
[1717102256935,2.67185,3742.8,3741.7,2.67258]
[1717102257139,0.04785723,3742.5,3741.7,3.166068]
[1717102257349,0.04790134,3742.7,3741.7,3.166068]
[1717102257554,0.04775557,3742.4,3741.7,3.166068]
[1717102257739,0.04785275,3742.6,3741.8,0.5428368]
[1717102257935,0.04770698,3742.3,3741.8,0.5428368]
[1717102258159,2.67185,3742.8,3741.8,0.5428368]
[1717102258350,0.04765839,3742.2,3741.8,0.5428368]
[1717102258570,2.67185,3742.8,3741.8,0.5428368]
[1717102258862,0.04763633,3742.1,3741.8,0.5428368]
[1717102259010,3.473875,3742.8,3741.8,0.5428368]
[1717102259216,3.473875,3742.8,3741.7,2.67258]
[1717102259413,0.04798097,3742.7,3741.7,2.67258]
[1717102264088,2.67195,3742.6,3741.7,2.67258]
[1717102264463,0.04779184,3742.5,3741.7,2.67258]
[1717102264864,2.67208,3742.4,3741.7,2.67258]
[1717102265169,0.04763104,3742.3,3741.7,2.67258]
[1717102265497,2.67208,3742.4,3741.7,2.67258]
[1717102265657,0.04768412,3742.3,3741.7,2.67258]
[1717102265854,0.04768412,3742.3,3741.6,2.2623]
[1717102265855,2.67208,3742.4,3741.5,6.67265625]
[1717102266056,5.3484,3743.1,3741.5,6.67265625]
[1717102266057,2.59661845,3742.3,3741.5,6.67265625]
[1717102266311,2.67222,3742.2,3741.5,6.67265625]
[1717102266472,0.04751326,3742.1,3741.5,6.67265625]
[1717102268793,0.04751326,3742.1,3741.3,2.67283]
[1717102268990,2.67236,3742.0,3741.3,2.67283]
[1717102269515,0.04748632,3741.9,3741.3,2.67283]
[1717102273189,0.31947095,3741.9,3741.1,6.67265625]
[1717102273391,2.396,3741.7,3741.1,6.67265625]
[1717102273802,0.04578366,3741.6,3741.1,6.67265625]
[1717102274620,0.04578366,3741.6,3741.0,2.7440966]
[1717102275127,2.67252,3741.8,3741.0,2.7440966]
[1717102275286,0.04579908,3741.7,3741.0,2.7440966]
[1717102276433,0.04579908,3741.7,3741.0,3.26637626]
[1717102279972,2.67223,3742.2,3741.3,2.67285]
[1717102280113,0.04554211,3741.6,3741.3,2.67285]
[1717102280320,2.67223,3742.2,3741.3,2.67285]
[1717102280517,0.04573649,3742.1,3741.3,2.67285]
[1717102280727,0.04573649,3742.1,3741.3,2.99946563]
[1717102281331,0.04573649,3742.1,3741.6,2.67263]
[1717102281672,2.672,3742.6,3741.6,2.67263]
[1717102281818,0.04570538,3742.0,3741.6,2.67263]
[1717102282019,2.672,3742.6,3741.6,2.67263]
[1717102282219,0.04562934,3741.9,3741.8,2.6725]
[1717102282491,2.672,3742.6,3741.8,2.6725]
[1717102282843,0.04601165,3742.5,3741.8,2.6725]
[1717102291679,2.4486,3742.7,3741.8,2.6725]
[1717102292202,0.04596071,3742.6,3741.8,2.6725]
[1717102292898,0.29541678,3742.6,3741.8,2.6725]
[1717102294452,2.67204,3742.5,3741.8,2.6725]
[1717102294657,2.67204,3742.5,3741.5,2.67271]
[1717102294902,0.04600332,3742.4,3741.5,2.67271]
[1717102298274,2.67217,3742.3,3741.5,2.67271]
[1717102298667,0.04590613,3742.2,3741.5,2.67271]
[1717102301560,2.4851,3742.1,3741.5,2.67271]
[1717102301766,2.67237,3742.0,3741.3,6.67265625]
[1717102301967,2.71822758,3742.0,3741.3,6.67265625]
[1717102303292,0.04585758,3742.0,3741.4,2.67273]
[1717102303712,3.0,3742.3,3741.4,2.67273]
[1717102303907,0.04559675,3741.9,3741.4,2.67273]
[1717102304207,0.04554815,3741.8,3741.4,2.67273]
[1717102304616,3.0,3742.3,3741.4,2.67273]
[1717102304769,0.0454951,3741.7,3741.4,2.67273]
[1717102305108,3.0,3742.3,3741.4,2.67273]
[1717102305308,0.04555838,3741.6,3741.4,2.67273]
[1717102305512,2.3476,3742.0,3741.4,2.67273]
[1717102306006,0.04566878,3741.9,3741.4,2.67273]
[1717102306307,0.04566878,3741.9,3741.3,6.67265625]
[1717102308112,2.71812878,3741.9,3741.3,6.67265625]
[1717102308329,3.28142296,3741.9,3741.3,6.67265625]
[1717102309709,3.28142296,3741.9,3741.1,2.673]
[1717102312317,4.17842296,3741.9,3741.1,2.673]
[1717102316389,4.17842296,3741.9,3741.0,0.0710266]
[1717102316390,0.897,3741.4,3741.0,0.0710266]
[1717102316574,0.897,3741.2,3741.0,0.0710266]
[1717102316775,0.04529332,3741.1,3741.0,0.0710266]
[1717102317104,1.253958,3741.4,3741.0,0.0710266]
[1717102317302,0.897,3741.1,3741.0,0.0710266]
[1717102318318,0.94226012,3741.1,3741.0,0.0710266]
[1717102323447,1.53189213,3741.1,3741.0,0.0710266]
[1717102324547,0.04526012,3741.1,3741.0,0.0710266]
[1717102324725,0.94226012,3741.1,3741.0,0.0710266]
[1717102334159,3.41646012,3741.1,3741.0,0.0710266]
[1717102337105,6.41646012,3741.1,3741.0,0.0710266]
[1717102339737,5.51946012,3741.1,3741.0,0.0710266]
[1717102339929,7.23570513,3741.1,3741.0,0.0710266]
[1717102342073,6.33870513,3741.1,3741.0,0.0710266]
[1717102342297,7.23570513,3741.1,3741.0,0.0710266]
[1717102342465,8.55784435,3741.1,3741.0,0.0710266]
[1717102342884,9.10784435,3741.1,3741.0,0.0710266]
[1717102343083,9.68577178,3741.1,3741.0,0.0710266]
[1717102343879,9.10784435,3741.1,3741.0,0.0710266]
[1717102344903,6.33870513,3741.1,3741.0,0.0710266]
[1717102345582,7.23570513,3741.1,3741.0,0.0710266]
[1717102345760,4.76150513,3741.1,3741.0,0.0710266]
[1717102346108,5.33941318,3741.1,3741.0,0.0710266]
[1717102355880,5.33943347,3741.1,3741.0,0.0710266]
[1717102358323,6.66157269,3741.1,3741.0,0.0710266]
[1717102358654,9.45758823,3741.1,3741.0,0.0710266]
[1717102361061,10.00763156,3741.1,3741.0,0.0710266]
[1717102361269,9.45763156,3741.1,3741.0,0.0710266]
[1717102361571,9.10111602,3741.1,3741.0,0.0710266]
[1717102364220,10.41002822,3741.1,3741.0,0.0710266]
[1717102365048,10.4100998,3741.1,3741.0,0.0710266]
[1717102371523,8.2041876,3741.1,3741.0,0.0710266]
[1717102371723,5.84244259,3741.1,3741.0,0.0710266]
[1717102372779,4.94544259,3741.1,3741.0,0.0710266]
[1717102372924,5.84244259,3741.1,3741.0,0.0710266]
[1717102373402,6.39244259,3741.1,3741.0,0.0710266]
[1717102382555,0.62330337,3741.1,3741.0,0.0710266]
[1717102382754,0.62330337,3741.1,3741.0,2.4080266]
[1717102382970,0.04526012,3741.1,3741.0,2.64882926]
[1717102383289,2.6724,3742.0,3741.0,1.20882926]
[1717102383588,3.5694,3742.0,3741.1,2.3988]
[1717102384491,2.67209,3742.4,3741.2,3.56992]
[1717102384677,0.897,3742.1,3741.3,2.3963]
[1717102386067,0.03964785,3741.7,3741.3,2.3963]
[1717102386268,0.897,3742.1,3741.3,2.3963]
[1717102386470,0.03959924,3741.6,3741.3,2.3963]
[1717102386676,0.897,3742.1,3741.5,2.477]
[1717102387077,0.897,3741.7,3741.5,2.477]
[1717102387678,0.897,3741.9,3741.5,2.477]
[1717102391824,2.67275,3741.5,3741.1,2.3114]
[1717102392040,2.67275,3741.5,3741.0,0.0710266]
[1717102392041,0.897,3741.2,3741.0,0.0710266]
[1717102392483,3.897,3741.2,3741.0,0.0710266]
[1717102401081,0.03937514,3741.1,3741.0,0.0710266]
[1717102402175,0.03937514,3741.1,3741.0,2.3857266]
[1717102402521,0.897,3741.9,3741.0,2.98132726]
[1717102402697,1.0766853,3741.8,3741.0,5.65438726]
[1717102403094,1.0766853,3741.8,3741.1,2.3147]
[1717102403095,0.1796853,3741.8,3741.1,2.3147]
[1717102403444,0.1796853,3741.8,3741.2,0.65513873]
[1717102403772,0.03957051,3741.7,3741.3,2.3147]
[1717102404203,1.0766853,3741.8,3741.3,2.3147]
[1717102404376,0.93656038,3741.6,3741.3,2.3147]
[1717102404577,0.897,3741.6,3741.3,2.3147]
[1717102404828,0.03951176,3741.5,3741.3,2.3147]
[1717102407420,1.0766853,3741.8,3741.3,2.3147]
[1717102407620,0.03945073,3741.4,3741.3,2.3147]
[1717102407818,1.0766853,3741.8,3741.3,2.3147]
[1717102408026,0.03945073,3741.4,3741.3,2.3147]
[1717102408219,1.0766853,3741.8,3741.3,2.3147]
[1717102408823,0.03959659,3741.7,3741.3,2.3147]
[1717102409198,3.0,3741.7,3741.3,2.3147]
[1717102409402,0.03954797,3741.6,3741.3,2.3147]
[1717102409782,0.93654797,3741.6,3741.3,2.3147]
[1717102411138,0.7184243,3741.6,3741.0,0.0710266]
[1717102411303,0.897,3741.2,3741.0,0.0710266]
[1717102411831,0.03931519,3741.1,3741.0,0.0710266]
[1717102412837,0.897,3741.4,3741.0,0.0710266]
[1717102413041,0.03931519,3741.1,3741.0,0.0710266]
[1717102413189,0.897,3741.4,3741.0,0.0710266]
[1717102413694,0.03941245,3741.3,3741.0,0.0710266]
[1717102415708,0.03941245,3741.3,3741.1,2.4514]
[1717102415892,3.0,3741.7,3741.1,2.4514]
[1717102416095,0.03940725,3741.2,3741.1,2.4514]
[1717102416289,0.897,3741.6,3741.1,2.4514]
[1717102416498,0.03940725,3741.2,3741.1,2.4514]
[1717102416727,0.897,3741.6,3741.1,2.4514]
[1717102416996,0.03940725,3741.2,3741.1,2.4514]
[1717102417225,0.897,3741.6,3741.1,2.4514]
[1717102417558,3.1796853,3741.8,3741.3,2.67286]
[1717102417705,0.03955313,3741.5,3741.3,2.67286]
[1717102418031,0.1796853,3741.8,3741.3,2.67286]
[1717102418215,0.03815846,3741.4,3741.3,2.67286]
[1717102418417,0.1796853,3741.8,3741.3,2.67286]
[1717102418737,0.1796853,3741.8,3741.4,2.4106]
[1717102418916,0.03830432,3741.7,3741.4,2.4106]
[1717102419228,0.1796853,3741.8,3741.4,2.4106]
[1717102419457,0.03825571,3741.6,3741.4,2.4106]
[1717102419599,0.1796853,3741.8,3741.4,2.4106]
[1717102420241,0.03830432,3741.7,3741.4,2.4106]
[1717102420731,0.03825571,3741.6,3741.4,2.4106]
[1717102421032,0.1796853,3741.8,3741.4,2.4106]
[1717102421638,0.03830432,3741.7,3741.4,2.4106]
[1717102421990,0.1796853,3741.8,3741.4,2.4106]
[1717102422194,0.03825571,3741.6,3741.4,2.4106]
[1717102422444,0.1796853,3741.8,3741.4,2.4106]
[1717102422653,0.03820709,3741.5,3741.4,2.4106]
[1717102422836,0.1796853,3741.8,3741.4,2.4106]
[1717102423032,0.03820709,3741.5,3741.4,2.918946]
[1717102423233,0.1796853,3741.8,3741.5,2.67271]
[1717102428280,1.0766853,3741.8,3741.2,2.67293]
[1717102431198,0.897,3741.4,3741.0,0.0710266]
[1717102431400,0.356971,3741.3,3741.0,0.0710266]
[1717102431607,0.03821964,3741.3,3741.0,0.0710266]
[1717102434407,3.0,3741.5,3741.0,0.0710266]
[1717102434611,0.03817101,3741.2,3741.0,0.0710266]
[1717102434764,3.0,3741.5,3741.0,0.0710266]
[1717102435300,0.03826826,3741.4,3741.0,0.0710266]
[1717102437810,0.03826826,3741.4,3741.1,2.2732]
[1717102438166,0.03826826,3741.4,3741.1,4.94619]
[1717102439089,0.03826826,3741.4,3741.1,2.67299]
[1717102439918,0.93526826,3741.4,3741.0,0.0710266]
[1717102440402,0.03826826,3741.4,3741.0,0.0710266]
[1717102440591,0.93526826,3741.4,3741.0,0.0710266]
[1717102441015,0.03826826,3741.4,3741.0,0.0710266]
[1717102448811,0.03826826,3741.4,3741.0,2.13703789]
[1717102449011,0.03826826,3741.4,3741.2,2.3579]
[1717102449244,2.67216,3742.3,3741.3,2.67286]
[1717102449461,0.897,3742.1,3741.3,2.67286]
[1717102449744,0.03698535,3742.0,3741.3,2.67286]
[1717102450049,0.03698535,3742.0,3741.3,3.38963979]
[1717102451142,0.897,3741.6,3741.3,2.67286]
[1717102451319,2.34894195,3741.9,3741.3,2.67286]
[1717102451644,0.93403324,3741.5,3741.0,0.0710266]
[1717102451803,0.897,3741.2,3741.0,0.0710266]
[1717102452442,0.03707505,3741.1,3741.0,0.0710266]
[1717102452748,0.897,3741.2,3741.0,0.0710266]
[1717102453047,0.03707505,3741.1,3741.0,0.0710266]
[1717102453543,0.897,3741.2,3741.0,0.0710266]
[1717102454052,0.03707505,3741.1,3741.0,0.0710266]
[1717102454422,0.897,3741.2,3741.0,0.0710266]
[1717102454808,0.03691662,3741.1,3741.0,0.0710266]
[1717102455351,0.93391662,3741.1,3741.0,0.0710266]
[1717102455653,5.40363892,3741.1,3741.0,0.0710266]
[1717102456127,4.82571728,3741.1,3741.0,0.0710266]
[1717102456505,3.92871728,3741.1,3741.0,0.0710266]
[1717102456849,5.40364738,3741.1,3741.0,0.0710266]
[1717102457208,5.40364152,3741.1,3741.0,0.0710266]
[1717102458102,4.82571728,3741.1,3741.0,0.0710266]
[1717102458302,5.40364708,3741.1,3741.0,0.0710266]
[1717102459141,4.82571728,3741.1,3741.0,0.0710266]
[1717102460043,6.1478565,3741.1,3741.0,0.0710266]
[1717102462809,9.0680565,3741.1,3741.0,0.0710266]
[1717102463425,9.64599435,3741.1,3741.0,0.0710266]
[1717102469220,9.0680565,3741.1,3741.0,0.0710266]
[1717102475252,11.8930565,3741.1,3741.0,0.0710266]
[1717102475436,12.47102841,3741.1,3741.0,1e-08]
[1717102475849,12.82754395,3741.1,3741.0,1e-08]
[1717102479036,2.67431,3739.3,3738.8,2.4041]
[1717102479237,0.897,3739.1,3738.8,2.4041]
[1717102480886,2.67451,3739.0,3738.8,2.4041]
[1717102481031,3.57151,3739.0,3738.8,2.4041]
[1717102481230,0.03517506,3738.9,3738.8,2.4041]
[1717102482189,0.03517506,3738.9,3738.8,2.64451]
[1717102482856,2.84165509,3739.5,3738.8,2.64451]
[1717102483031,0.03381509,3738.9,3738.8,0.24041]
[1717102483235,2.67438,3739.2,3738.6,2.3658]
[1717102483236,0.897,3739.1,3738.6,2.3658]
[1717102483436,0.03381509,3738.9,3738.6,2.3658]
[1717102483635,0.03394261,3739.0,3738.8,2.67465]
[1717102483876,3.16746509,3739.5,3739.0,2.6745]
[1717102484098,3.16746509,3739.5,3739.2,2.4096]
[1717102484099,0.16746509,3739.5,3739.2,2.4096]
[1717102484789,0.16746509,3739.5,3739.1,0.59811]
[1717102484790,0.16746509,3739.5,3739.4,2.4096]
[1717102490791,0.20137499,3739.5,3739.4,2.4096]
[1717102493477,0.20137499,3739.5,3739.1,0.59811]
[1717102497706,0.20137499,3739.5,3739.0,2.2816]
[1717102498510,0.20137499,3739.5,3738.9,2.67452]
[1717102499299,0.20137499,3739.5,3738.7,9.07185625]
[1717102501967,0.16746509,3739.5,3738.7,9.07185625]
[1717102502974,0.16746509,3739.5,3738.8,2.67464]
[1717102503186,0.16746509,3739.5,3738.8,3.84928963]
[1717102504408,2.67422,3739.4,3738.8,2.67464]
[1717102504732,0.16746509,3739.5,3738.7,6.67265625]
[1717102504733,5.52778985,3739.3,3738.7,6.67265625]
[1717102505525,3.99650922,3739.2,3738.3,6.67265625]
[1717102505835,2.67454,3739.0,3738.3,6.67265625]
[1717102505978,3.92696513,3739.0,3738.3,6.67265625]
[1717102506183,0.03387474,3738.9,3738.3,6.67265625]
[1717102506418,0.03387474,3738.9,3737.2,15.21]
[1717102506419,4.35601396,3738.9,3737.8,2.3616]
[1717102508119,5.70848474,3738.9,3737.9,2.67526]
[1717102508292,0.03387474,3738.9,3738.3,2.4026]
[1717102508627,2.67432,3739.3,3738.3,2.4026]
[1717102508806,2.67432,3739.3,3738.3,37.4026]
[1717102509916,2.67432,3739.3,3738.4,2.6749]
[1717102510548,0.03363295,3739.2,3738.4,2.6749]
[1717102512428,0.03363295,3739.2,3738.4,3.84991562]
[1717102512741,2.67432,3739.3,3738.4,3.84991562]
[1717102513802,0.03353327,3739.2,3738.4,3.84991562]
[1717102514533,2.67432,3739.3,3738.4,3.84991562]
[1717102517106,0.03364945,3739.2,3738.4,3.84991562]
[1717102517734,2.67432,3739.3,3738.4,3.84991562]
[1717102518523,0.898,3739.1,3738.4,3.84991562]
[1717102518840,0.898,3739.1,3738.5,0.62525156]
[1717102519192,2.67432,3739.3,3738.6,2.67479]
[1717102519396,0.03372672,3739.2,3738.7,2.4605]
[1717102520227,0.03372672,3739.2,3738.8,2.72813758]
[1717102520443,1.06546509,3739.5,3738.8,2.72813758]
[1717102520641,1.06546509,3739.5,3738.8,2.67465]
[1717102520811,1.06546509,3739.5,3738.8,3.34049016]
[1717102521151,0.03366463,3739.4,3738.8,3.34049016]
[1717102521363,0.03366463,3739.4,3738.9,0.05348757]
[1717102521645,0.03366463,3739.4,3739.0,2.67449]
[1717102522016,0.03366463,3739.4,3739.1,0.05348317]
[1717102522199,0.03366463,3739.4,3739.1,0.3928645]
[1717102523361,0.03366463,3739.4,3739.3,2.3542]
[1717102525811,0.16746509,3739.5,3739.3,2.3542]
[1717102526012,0.16746509,3739.5,3739.4,2.67422]
[1717102527532,0.16746509,3739.5,3739.3,2.3542]
[1717102527735,0.16746509,3739.5,3739.4,2.64560763]
[1717102528671,0.20131907,3739.5,3739.3,2.3542]
[1717102529503,0.16746509,3739.5,3739.3,2.3542]
[1717102532053,0.03415172,3739.4,3739.3,2.3542]
[1717102532350,0.16746509,3739.5,3739.3,2.3542]
[1717102535955,0.16746509,3739.5,3739.1,4.98412]
[1717102538567,0.16746509,3739.5,3739.1,2.67442]
[1717102540039,0.16746509,3739.5,3738.9,35.0]
[1717102540260,0.16746509,3739.5,3738.6,2.2657]
[1717102540261,2.67434,3739.3,3738.6,2.2657]
[1717102540461,0.31822866,3739.2,3738.6,2.2657]
[1717102540663,0.03404815,3739.2,3738.6,2.2657]
[1717102541162,2.67434,3739.3,3738.6,2.2657]
[1717102542444,2.67434,3739.3,3738.5,9.34751625]
[1717102543902,0.03400046,3739.2,3738.5,9.34751625]
[1717102544177,0.03400046,3739.2,3738.5,2.67486]
[1717102544381,0.898,3738.8,3738.1,9.34775625]
[1717102544701,0.898,3738.6,3738.1,9.34775625]
[1717102545048,0.898,3738.4,3738.1,9.34775625]
[1717102545276,0.03330016,3738.3,3738.1,2.6751]
[1717102545477,0.898,3738.6,3738.1,2.6751]
[1717102545657,2.4666,3738.5,3738.1,2.6751]
[1717102545978,0.03357157,3738.4,3737.8,3.57337]
[1717102546188,0.03357157,3738.4,3737.9,2.4132]
[1717102546358,3.0,3738.8,3738.0,0.898]
[1717102546774,0.03366787,3738.7,3738.0,0.898]
[1717102546959,0.03366787,3738.7,3737.8,3.57337]
[1717102547170,3.898,3738.8,3737.8,6.21897763]
[1717102551063,0.03354872,3738.7,3737.8,3.57337]
[1717102551382,3.2164,3738.4,3737.5,6.67265625]
[1717102551571,2.3184,3738.4,3737.6,2.67545]
[1717102551775,0.03335394,3738.3,3737.6,3.71250348]
[1717102551940,2.3184,3738.4,3737.6,3.71250348]
[1717102552146,0.03323817,3738.2,3737.6,3.71250348]
[1717102552345,2.2621,3738.7,3737.9,2.67529]
[1717102552589,5.2621,3738.7,3737.9,3.57329]
[1717102554290,2.6738,3740.0,3737.9,3.57329]
[1717102554291,2.4225,3739.1,3738.4,0.898]
[1717102554504,0.03108933,3739.0,3738.6,0.898]